lending/lending_fUSD_20251111
["ID","MTS","AMOUNT","RATE_DAILY","PERIOD"]
[393626328,1762864256195,-646.51770585,0.0003965,30]
[393626329,1762864256205,-250.0,0.0003965,30]
[393626330,1762864256214,-500.0,0.0003965,30]
[393626331,1762864256224,-151.0,0.0003965,30]
[393626332,1762864256233,-250.0,0.0003965,30]
[393626333,1762864256242,-151.0,0.0003965,30]
[393626334,1762864256252,-402.54326302,0.0003965,30]
[393626335,1762864256262,-250.0,0.0003965,30]
[393626336,1762864256272,-151.0,0.0003965,30]
[393626337,1762864256282,-250.0,0.0003965,30]
[393626338,1762864256293,-151.0,0.0003965,30]
[393626339,1762864256303,-250.0,0.0003965,30]
[393626340,1762864256316,-250.0,0.0003965,30]
[393626341,1762864256326,-250.0,0.0003965,30]
[393626342,1762864256338,-151.0,0.0003965,30]
[393626343,1762864256347,-250.0,0.0003965,30]
[393626344,1762864256359,-250.0,0.0003965,30]
[393626345,1762864256369,-151.0,0.0003965,30]
[393626346,1762864256380,-250.0,0.0003965,30]
[393626347,1762864256392,-250.0,0.0003965,30]
[393626348,1762864256402,-151.0,0.0003965,30]
[393626349,1762864256413,-250.0,0.0003965,30]
[393626350,1762864256423,-250.0,0.0003965,30]
[393626351,1762864256435,-151.0,0.0003965,30]
[393626352,1762864256446,-250.0,0.0003965,30]
[393626353,1762864256456,-250.0,0.0003965,30]
[393626354,1762864256467,-250.0,0.0003965,30]
[393626355,1762864256477,-250.0,0.0003965,30]
[393626356,1762864256487,-250.0,0.0003965,30]
[393626357,1762864256497,-250.0,0.0003965,30]
[393626358,1762864256618,-250.0,0.0003965,30]
[393626359,1762864256643,-250.0,0.0003965,30]
[393626360,1762864256653,-250.0,0.0003965,30]
[393626361,1762864256662,-250.0,0.0003965,30]
[393626362,1762864256672,-220.0,0.0003965,30]
[393626363,1762864256682,-250.0,0.0003965,30]
[393626364,1762864256692,-250.0,0.0003965,30]
[393626365,1762864256702,-250.0,0.0003965,30]
[393626366,1762864256711,-250.0,0.0003965,30]
[393626367,1762864256721,-220.0,0.0003965,30]
[393626368,1762864256730,-250.0,0.0003965,30]
[393626369,1762864256739,-250.0,0.0003965,30]
[393626370,1762864256749,-221.17711777,0.0003965,30]
[393626371,1762864256759,-250.0,0.0003965,30]
[393626372,1762864256768,-250.0,0.0003965,30]
[393626373,1762864256777,-250.0,0.0003965,30]
[393626374,1762864256786,-250.0,0.0003965,30]
[393626375,1762864256799,-250.0,0.0003965,30]
[393626376,1762864256809,-250.0,0.0003965,30]
[393626377,1762864256818,-250.0,0.0003965,30]
[393626378,1762864256827,-250.0,0.0003965,30]
[393626379,1762864256837,-300.0,0.0003965,30]
[393626380,1762864256847,-311.1,0.0003965,30]
[393626381,1762864256856,-322.6107,0.0003965,30]
[393626382,1762864256866,-334.5472959,0.0003965,30]
[393626383,1762864256876,-346.92554585,0.0003965,30]
[393626384,1762864256886,-359.76179104,0.0003965,30]
[393626385,1762864256897,-373.07297731,0.0003965,30]
[393626386,1762864256907,-386.87667747,0.0003965,30]
[393626387,1762864256917,-401.19111454,0.0003965,30]
[393626388,1762864256926,-416.03518578,0.0003965,30]
[393626389,1762864256936,-431.42848765,0.0003965,30]
[393626390,1762864256946,-447.3913417,0.0003965,30]
[393626391,1762864256955,-463.94482134,0.0003965,30]
[393626392,1762864256964,-481.11077973,0.0003965,30]
[393626393,1762864256973,-498.91187858,0.0003965,30]
[393626394,1762864256983,-517.37161808,0.0003965,30]
[393626395,1762864256992,-536.51436795,0.0003965,30]
[393626396,1762864257001,-556.36539957,0.0003965,30]
[393626397,1762864257011,-576.95091935,0.0003965,30]
[393626398,1762864257020,-483.77283663,0.0003965,30]
[393626399,1762864257030,-234.39226363,0.00039651,31]
[393626400,1762864257041,-1242.0,0.00039651,7]
[393626401,1762864257050,-1242.0,0.00039651,7]
[393626402,1762864257059,-1242.0,0.00039651,7]
[393626403,1762864257069,-1242.0,0.00039651,7]
[393626404,1762864257078,-152.0,0.00039651,7]
[393626405,1762864257087,-827.0,0.00039651,7]
[393626406,1762864257096,-1242.0,0.00039651,7]
[393626407,1762864257105,-152.0,0.00039651,7]
[393626408,1762864257115,-634.38718011,0.00039651,7]
[393626409,1762864257124,-152.0,0.00039651,7]
[393626410,1762864257133,-1242.0,0.00039651,7]
[393626411,1762864257142,-152.0,0.00039651,7]
[393626412,1762864257151,-1242.0,0.00039651,7]
[393626413,1762864257161,-1242.0,0.00039651,7]
[393626414,1762864257170,-152.0,0.00039651,7]
[393626415,1762864257179,-1242.0,0.00039651,7]
[393626416,1762864257188,-152.0,0.00039651,7]
[393626417,1762864257198,-152.0,0.00039651,7]
[393626418,1762864257207,-152.0,0.00039651,7]
[393626419,1762864257216,-1242.0,0.00039651,7]
[393626420,1762864257229,-152.0,0.00039651,7]
[393626421,1762864257239,-152.0,0.00039651,7]
[393626422,1762864257248,-1242.0,0.00039651,7]
[393626423,1762864257258,-152.0,0.00039651,7]
[393626424,1762864257267,-1242.0,0.00039651,7]
[393626425,1762864257276,-151.0,0.00039651,7]
[393626426,1762864257285,-152.0,0.00039651,7]
[393626427,1762864257295,-152.0,0.00039651,7]
[393626428,1762864257305,-1242.0,0.00039651,7]
[393626429,1762864257319,-151.0,0.00039651,7]
[393626430,1762864257329,-152.0,0.00039651,7]
[393626431,1762864257338,-152.0,0.00039651,7]
[393626432,1762864257348,-1242.0,0.00039651,7]
[393626433,1762864257357,-151.0,0.00039651,7]
[393626434,1762864257366,-152.0,0.00039651,7]
[393626435,1762864257376,-1242.0,0.00039651,7]
[393626436,1762864257386,-151.16701834,0.00039651,7]
[393626437,1762864257397,-151.0,0.00039651,7]
[393626438,1762864257408,-152.0,0.00039651,7]
[393626439,1762864257419,-1242.0,0.00039651,7]
[393626440,1762864257429,-1242.0,0.00039651,7]
[393626441,1762864257438,-152.0,0.00039651,7]
[393626442,1762864257449,-1242.0,0.00039651,7]
[393626443,1762864257459,-152.0,0.00039651,7]
[393626444,1762864257469,-1242.0,0.00039651,7]
[393626445,1762864257479,-152.0,0.00039651,7]
[393626446,1762864257488,-1242.0,0.00039651,7]
[393626447,1762864257497,-152.0,0.00039651,7]
[393626448,1762864257506,-1242.0,0.00039651,7]
[393626449,1762864257516,-151.0,0.00039651,7]
[393626450,1762864257525,-1242.0,0.00039651,7]
[393626451,1762864257534,-152.0,0.00039651,7]
[393626452,1762864257544,-151.0,0.00039651,7]
[393626453,1762864257554,-1242.0,0.00039651,7]
[393626454,1762864257563,-152.0,0.00039651,7]
[393626455,1762864257572,-152.0,0.00039651,7]
[393626456,1762864257582,-151.0,0.00039651,7]
[393626457,1762864257591,-1242.0,0.00039651,7]
[393626458,1762864257600,-152.0,0.00039651,7]
[393626459,1762864257610,-152.0,0.00039651,7]
[393626460,1762864257619,-151.0,0.00039651,7]
[393626461,1762864257628,-1242.0,0.00039651,7]
[393626462,1762864257638,-152.0,0.00039651,7]
[393626463,1762864257647,-151.0,0.00039651,7]
[393626464,1762864257656,-1242.0,0.00039651,7]
[393626465,1762864257666,-152.0,0.00039651,7]
[393626466,1762864257675,-151.0,0.00039651,7]
[393626467,1762864257685,-1242.0,0.00039651,7]
[393626468,1762864257694,-151.0,0.00039651,7]
[393626469,1762864257704,-152.0,0.00039651,7]
[393626470,1762864257714,-1242.0,0.00039651,7]
[393626471,1762864257724,-151.0,0.00039651,7]
[393626472,1762864257733,-152.0,0.00039651,7]
[393626473,1762864257742,-1242.0,0.00039651,7]
[393626474,1762864257751,-151.0,0.00039651,7]
[393626475,1762864257760,-152.0,0.00039651,7]
[393626476,1762864257770,-151.0,0.00039651,7]
[393626477,1762864257779,-152.0,0.00039651,7]
[393626478,1762864257789,-151.0,0.00039651,7]
[393626479,1762864257798,-221.25242395,0.00039651,7]
[393626480,1762864257808,-151.0,0.00039651,7]
[393626481,1762864257818,-151.0,0.00039651,7]
[393626482,1762864257828,-151.0,0.00039651,7]
[393626483,1762864257838,-151.0,0.00039651,7]
[393626484,1762864257847,-151.0,0.00039651,7]
[393626485,1762864257857,-151.0,0.00039651,7]
[393626486,1762864257867,-151.0,0.00039651,7]
[393626487,1762864257876,-151.0,0.00039651,7]
[393626488,1762864257886,-151.0,0.00039651,7]
[393626489,1762864257895,-151.0,0.00039651,7]
[393626490,1762864257905,-151.0,0.00039651,7]
[393626491,1762864257915,-151.0,0.00039651,7]
[393626492,1762864257925,-151.0,0.00039651,7]
[393626493,1762864257935,-151.0,0.00039651,7]
[393626494,1762864257944,-151.0,0.00039651,7]
[393626495,1762864257954,-151.0,0.00039651,7]
[393626496,1762864257963,-151.0,0.00039651,7]
[393626497,1762864257972,-151.0,0.00039651,7]
[393626498,1762864257982,-151.0,0.00039651,7]
[393626499,1762864257991,-151.0,0.00039651,7]
[393626500,1762864258000,-151.0,0.00039651,7]
[393626501,1762864258009,-151.0,0.00039651,7]
[393626502,1762864258019,-151.0,0.00039651,7]
[393626503,1762864258028,-151.0,0.00039651,7]
[393626504,1762864258037,-151.0,0.00039651,7]
[393626505,1762864258047,-151.0,0.00039651,7]
[393626506,1762864258056,-151.0,0.00039651,7]
[393626507,1762864258064,-151.0,0.00039651,7]
[393626508,1762864258074,-151.0,0.00039651,7]
[393626509,1762864258083,-151.0,0.00039651,7]
[393626510,1762864258092,-151.0,0.00039651,7]
[393626511,1762864258102,-158.75540727,0.00039651,30]
[393626512,1762864258111,-2000.0,0.00039651,2]
[393626513,1762864258120,-200.0,0.00039651,2]
[393626514,1762864258129,-1242.0,0.00039651,7]
[393626515,1762864258139,-1242.0,0.00039651,7]
[393626516,1762864258148,-200.0,0.00039651,2]
[393626517,1762864258157,-151.0,0.00039651,120]
[393626518,1762864258166,-151.0,0.00039651,120]
[393626519,1762864258175,-247.14489,0.00039651,120]
[393626520,1762864258184,-151.0,0.00039651,120]
[393626521,1762864258194,-151.0,0.00039651,120]
[393626522,1762864258203,-151.0,0.00039651,120]
[393626523,1762864258213,-151.0,0.00039651,120]
[393626524,1762864258222,-151.0,0.00039651,120]
[393626525,1762864258231,-151.0,0.00039651,30]
[393626526,1762864258241,-151.0,0.00039651,120]
[393626527,1762864258250,-151.0,0.00039651,120]
[393626528,1762864258259,-151.0,0.00039651,120]
[393626529,1762864258268,-655.675517,0.00039651,120]
[393626530,1762864258278,-151.0,0.00039651,120]
[393626531,1762864258287,-151.0,0.00039651,120]
[393626532,1762864258297,-655.675517,0.00039651,120]
[393626533,1762864258307,-151.0,0.00039651,120]
[393626534,1762864258321,-151.0,0.00039651,120]
[393626535,1762864258331,-151.0,0.00039651,120]
[393626536,1762864258340,-655.675517,0.00039651,120]
[393626537,1762864258350,-267.097541,0.00039651,120]
[393626538,1762864258359,-655.675517,0.00039651,120]
[393626539,1762864258368,-151.799888,0.00039651,120]
[393626540,1762864258377,-151.0,0.00039651,120]
[393626541,1762864258389,-151.0,0.00039651,30]
[393626542,1762864258398,-166.9717,0.00039651,120]
[393626543,1762864258407,-166.9717,0.00039651,120]
[393626544,1762864258416,-338.517687,0.00039651,120]
[393626545,1762864258425,-166.9717,0.00039651,120]
[393626546,1762864258434,-338.517687,0.00039651,120]
[393626547,1762864258443,-166.9717,0.00039651,120]
[393626548,1762864258452,-151.0,0.00039651,120]
[393626549,1762864258461,-338.517687,0.00039651,120]
[393626550,1762864258470,-151.0,0.00039651,120]
[393626551,1762864258479,-338.517687,0.00039651,120]
[393626552,1762864258488,-151.0,0.00039651,120]
[393626553,1762864258498,-193.620438,0.00039651,120]
[393626554,1762864258507,-151.0,0.00039651,120]
[393626555,1762864258517,-151.0,0.00039651,120]
[393626556,1762864258526,-183.207224,0.00039651,120]
[393626557,1762864258536,-154.052997,0.00039651,120]
[393626558,1762864258545,-183.207224,0.00039651,120]
[393626559,1762864258555,-183.207224,0.00039651,120]
[393626560,1762864258564,-241.55758,0.00039651,120]
[393626561,1762864258574,-183.207224,0.00039651,120]
[393626562,1762864258583,-151.0,0.00039651,120]
[393626563,1762864258593,-194.57592,0.00039651,120]
[393626564,1762864258602,-194.57592,0.00039651,120]
[393626565,1762864258611,-151.0,0.00039651,120]
[393626566,1762864258621,-194.57592,0.00039651,120]
[393626567,1762864258630,-151.0,0.00039651,120]
[393626568,1762864258639,-194.57592,0.00039651,120]
[393626569,1762864258648,-151.0,0.00039651,120]
[393626570,1762864258658,-151.0,0.00039651,120]
[393626571,1762864258667,-151.0,0.00039651,120]
[393626572,1762864258677,-152.801232,0.00039651,120]
[393626573,1762864258686,-151.0,0.00039651,120]
[393626574,1762864258695,-151.0,0.00039651,120]
[393626575,1762864258704,-218.063022,0.00039651,120]
[393626576,1762864258714,-218.063022,0.00039651,120]
[393626577,1762864258723,-218.063022,0.00039651,120]
[393626578,1762864258732,-156.688145,0.00039651,120]
[393626579,1762864258742,-151.0,0.00039651,120]
[393626580,1762864258751,-218.063022,0.00039651,120]
[393626581,1762864258761,-151.0,0.00039651,120]
[393626582,1762864258770,-151.0,0.00039651,120]
[393626583,1762864258779,-1661360.85661954,0.00039651,2]
[393626584,1762864258789,-158.959646,0.00039651,120]
[393626585,1762864258799,-386.976691,0.00039651,120]
[393626586,1762864258808,-386.976691,0.00039651,120]
[393626587,1762864258817,-386.976691,0.00039651,120]
[393626588,1762864258826,-151.0,0.00039651,95]
[393626589,1762864258835,-386.976691,0.00039651,120]
[393626590,1762864258845,-175.680026,0.00039651,120]
[393626591,1762864258855,-201.975051,0.00039651,120]
[393626592,1762864258864,-201.975051,0.00039651,120]
[393626593,1762864258873,-151.0,0.00039651,120]
[393626594,1762864258882,-151.0,0.00039651,120]
[393626595,1762864258892,-201.975051,0.00039651,120]
[393626596,1762864258901,-1299.000187,0.00039651,120]
[393626597,1762864258910,-151.0,0.00039651,120]
[393626598,1762864258919,-151.0,0.00039651,120]
[393626599,1762864258927,-201.975047,0.00039651,120]
[393626600,1762864258937,-1299.000187,0.00039651,120]
[393626601,1762864258945,-151.0,0.00039651,120]
[393626602,1762864258954,-151.0,0.00039651,120]
[393626603,1762864258963,-151.0,0.00039651,120]
[393626604,1762864258972,-1299.000187,0.00039651,120]
[393626605,1762864258981,-1299.000193,0.00039651,120]
[393626606,1762864258990,-151.0,0.00039651,120]
[393626607,1762864258999,-177.507441,0.00039651,15]
[393626608,1762864259008,-151.0,0.00039651,120]
[393626609,1762864259018,-177.507441,0.00039651,15]
[393626610,1762864259027,-307.721433,0.00039651,120]
[393626611,1762864259035,-177.507441,0.00039651,15]
[393626612,1762864259046,-307.721433,0.00039651,120]
[393626613,1762864259055,-177.507433,0.00039651,15]
[393626614,1762864259063,-307.721433,0.00039651,120]
[393626615,1762864259073,-307.721434,0.00039651,120]
[393626616,1762864259082,-260.239907,0.00039651,120]
[393626617,1762864259091,-255.663913,0.00039651,120]
[393626618,1762864259099,-260.239907,0.00039651,120]
[393626619,1762864259109,-255.663913,0.00039651,120]
[393626620,1762864259118,-171.09974,0.00039651,120]
[393626621,1762864259127,-260.239907,0.00039651,120]
[393626622,1762864259136,-255.663913,0.00039651,120]
[393626623,1762864259145,-171.09974,0.00039651,120]
[393626624,1762864259154,-260.239911,0.00039651,120]
[393626625,1762864259163,-255.663922,0.00039651,120]
[393626626,1762864259172,-200.0,0.00039651,2]
[393626627,1762864259181,-180.0,0.00039651,30]
[393626628,1762864259190,-171.09974,0.00039651,120]
[393626629,1762864259200,-267.41918428,0.00039651,30]
[393626630,1762864259209,-171.099732,0.00039651,120]
[393626631,1762864259219,-151.0,0.00039651,120]
[393626632,1762864259228,-151.0,0.00039651,120]
[393626633,1762864259238,-151.0,0.00039651,120]
[393626634,1762864259247,-151.0,0.00039651,120]
[393626635,1762864259256,-151.0,0.00039651,120]
[393626636,1762864259266,-151.0,0.00039651,91]
[393626637,1762864259389,-151.0,0.00039651,120]
[393626638,1762864259400,-156.542144,0.00039651,120]
[393626639,1762864259410,-151.0,0.00039651,120]
[393626640,1762864259420,-151.0,0.00039651,120]
[393626641,1762864259429,-227.65,0.00039654,2]
[393626642,1762864259438,-2500.0,0.00039654,14]
[393626643,1762864259448,-300.0,0.00039654,2]
[393626644,1762864259458,-2500.0,0.00039654,14]
[393626645,1762864259467,-189.98,0.00039656,2]
[393626646,1762864259477,-1794.0,0.00039657,120]
[393626647,1762864259486,-724.49,0.00039658,120]
[393626648,1762864259496,-500.0,0.00039659,7]
[393626649,1762864259506,-500.0,0.00039659,7]
[393626650,1762864259516,-204.98021323,0.00039659,7]
[393626651,1762864259526,-724.49,0.00039659,120]
[393626652,1762864259536,-724.49,0.00039659,120]
[393626653,1762864259547,-724.49,0.00039659,120]
[393626654,1762864259557,-150.0,0.0003966,7]
[393626655,1762864259566,-2500.0,0.00039663,14]
[393626656,1762864259575,-2500.0,0.00039663,14]
[393626657,1762864259586,-2001.2928,0.00039664,3]
[393626658,1762864259595,-2000.0,0.00039664,3]
[393626659,1762864259605,-2545.26116823,0.00039666,2]
[393626660,1762864259614,-300.0,0.00039669,2]
[393626661,1762864259623,-500.0,0.0003967,2]
[393626662,1762864259632,-1000.0,0.0003967,2]
[393626663,1762864259642,-662.8021949,0.0003967,2]
[393626664,1762864259652,-1000.0,0.0003967,2]
[393626665,1762864259662,-1408.03155104,0.0003967,2]
[393626666,1762864259672,-433.0,0.00039671,120]
[393626667,1762864259682,-2500.0,0.00039672,14]
[393626668,1762864259691,-2500.0,0.00039672,14]
[393626669,1762864259703,-500.97586857,0.00039673,5]
[393626670,1762864259712,-505.83127506,0.00039673,5]
[393626671,1762864259722,-1000.0,0.00039676,7]
[393626672,1762864259731,-300.0,0.00039676,2]
[393626673,1762864259741,-375.90278445,0.00039676,2]
[393626674,1762864259750,-151.0,0.00039679,14]
[393626675,1762864259759,-150.0,0.00039679,7]
[393626676,1762864259768,-1000.0,0.00039679,7]
[393626677,1762864259778,-2500.0,0.0003968,14]
[393626678,1762864259787,-2500.0,0.0003968,14]
[393626679,1762864259797,-300.0,0.00039681,10]
[393626680,1762864259807,-666.0,0.00039681,10]
[393626681,1762864259816,-500.0,0.00039681,120]
[393626682,1762864259826,-500.0,0.00039681,120]
[393626683,1762864259835,-500.0,0.00039681,7]
[393626684,1762864259845,-150.0,0.00039681,7]
[393626685,1762864259854,-151.0,0.00039682,120]
[393626686,1762864259863,-151.0,0.00039682,120]
[393626687,1762864259872,-175.796118,0.00039682,120]
[393626688,1762864259882,-151.0,0.00039682,120]
[393626689,1762864259892,-151.0,0.00039682,120]
[393626690,1762864259901,-151.0,0.00039682,120]
[393626691,1762864259910,-151.0,0.00039682,120]
[393626692,1762864259919,-151.0,0.00039682,120]
[393626693,1762864259928,-151.0,0.00039682,120]
[393626694,1762864259938,-151.0,0.00039682,120]
[393626695,1762864259947,-151.0,0.00039682,120]
[393626696,1762864259956,-152.959432,0.00039682,120]
[393626697,1762864259965,-151.0,0.00039682,120]
[393626698,1762864259975,-151.0,0.00039682,120]
[393626699,1762864259984,-158.545571,0.00039682,120]
[393626700,1762864259993,-152.822865,0.00039682,120]
[393626701,1762864260003,-151.0,0.00039682,120]
[393626702,1762864260013,-151.0,0.00039682,120]
[393626703,1762864260022,-151.929343,0.00039682,120]
[393626704,1762864260032,-154.676601,0.00039682,120]
[393626705,1762864260042,-151.0,0.00039682,120]
[393626706,1762864260051,-152.255212,0.00039682,120]
[393626707,1762864260061,-151.0,0.00039682,120]
[393626708,1762864260070,-151.346946,0.00039682,120]
[393626709,1762864260080,-153.57712,0.00039682,120]
[393626710,1762864260090,-153.499122,0.00039682,120]
[393626711,1762864260099,-151.0,0.00039682,120]
[393626712,1762864260109,-184.564475,0.00039682,120]
[393626713,1762864260118,-151.0,0.00039682,120]
[393626714,1762864260128,-151.0,0.00039682,120]
[393626715,1762864260137,-151.0,0.00039682,120]
[393626716,1762864260148,-152.786517,0.00039682,120]
[393626717,1762864260160,-151.0,0.00039682,120]
[393626718,1762864260169,-151.0,0.00039682,120]
[393626719,1762864260179,-151.0,0.00039682,120]
[393626720,1762864260188,-151.0,0.00039682,120]
[393626721,1762864260197,-151.0,0.00039682,120]
[393626722,1762864260206,-294.517034,0.00039682,120]
[393626723,1762864260215,-247.0,0.00039686,120]
[393626724,1762864260225,-151.0,0.00039689,120]
[393626725,1762864260235,-151.0,0.00039689,120]
[393626726,1762864260244,-151.0,0.00039689,120]
[393626727,1762864260253,-151.0,0.00039689,120]
[393626728,1762864260263,-151.0,0.00039689,120]
[393626729,1762864260272,-151.0,0.00039689,60]
[393626730,1762864260282,-208.187878,0.00039689,120]
[393626731,1762864260291,-151.0,0.00039689,120]
[393626732,1762864260302,-151.0,0.00039689,120]
[393626733,1762864260314,-151.957793,0.00039689,120]
[393626734,1762864260323,-274.94546,0.00039689,15]
[393626735,1762864260332,-151.0,0.00039689,120]
[393626736,1762864260342,-151.0,0.00039689,120]
[393626737,1762864260351,-151.0,0.00039689,120]
[393626738,1762864260362,-151.0,0.00039689,30]
[393626739,1762864260371,-2500.0,0.00039689,14]
[393626740,1762864260381,-2500.0,0.00039689,14]
[393626741,1762864260390,-2500.0,0.00039689,14]
[393626742,1762864260400,-300.0,0.00039693,2]
[393626743,1762864260411,-300.0,0.00039695,10]
[393626744,1762864260421,-204.058339,0.00039696,120]
[393626745,1762864260431,-151.0,0.00039696,120]
[393626746,1762864260441,-151.0,0.00039696,120]
[393626747,1762864260451,-151.0,0.00039696,120]
[393626748,1762864260460,-151.0,0.00039696,120]
[393626749,1762864260469,-185.1304,0.00039696,120]
[393626750,1762864260479,-151.0,0.00039696,120]
[393626751,1762864260488,-151.0,0.00039696,120]
[393626752,1762864260497,-151.0,0.00039696,120]
[393626753,1762864260506,-151.0,0.00039696,120]
[393626754,1762864260515,-151.0,0.00039696,120]
[393626755,1762864260525,-176.861987,0.00039696,120]
[393626756,1762864260534,-174.561151,0.00039696,120]
[393626757,1762864260545,-151.0,0.00039696,120]
[393626758,1762864260555,-236.062878,0.00039696,120]
[393626759,1762864260565,-151.0,0.00039696,120]
[393626760,1762864260574,-151.0,0.00039696,120]
[393626761,1762864260585,-151.0,0.00039696,30]
[393626762,1762864260595,-151.0,0.00039696,120]
[393626763,1762864260604,-151.0,0.00039696,120]
[393626764,1762864260615,-152.546117,0.00039696,120]
[393626765,1762864260624,-151.0,0.00039696,120]
[393626766,1762864260634,-151.0,0.00039696,14]
[393626767,1762864260644,-300.0,0.00039696,2]
[393626768,1762864260654,-151.0,0.00039696,14]
[393626769,1762864260663,-151.0,0.00039696,120]
[393626770,1762864260672,-153.145943,0.00039696,14]
[393626771,1762864260682,-157.855366,0.00039696,120]
[393626772,1762864260693,-151.0,0.00039696,120]
[393626773,1762864260702,-173.110584,0.00039696,120]
[393626774,1762864260711,-151.0,0.00039696,120]
[393626775,1762864260722,-151.0,0.00039696,120]
[393626776,1762864260732,-151.0,0.00039696,120]
[393626777,1762864260741,-151.0,0.00039696,120]
[393626778,1762864260750,-151.0,0.00039696,120]
[393626779,1762864260759,-151.0,0.00039696,120]
[393626780,1762864260768,-151.0,0.00039696,120]
[393626781,1762864260777,-151.0,0.00039696,120]
[393626782,1762864260787,-152.782305,0.00039696,120]
[393626783,1762864260797,-151.0,0.00039696,60]
[393626784,1762864260807,-151.0,0.00039696,120]
[393626785,1762864260816,-151.0,0.00039696,120]
[393626786,1762864260826,-151.987592,0.00039696,120]
[393626787,1762864260836,-151.0,0.00039696,120]
[393626788,1762864260846,-151.0,0.00039696,120]
[393626789,1762864260856,-151.0,0.00039696,120]
[393626790,1762864260865,-151.0,0.00039696,120]
[393626791,1762864260874,-151.0,0.00039696,120]
[393626792,1762864260883,-151.0,0.00039696,120]
[393626793,1762864260894,-151.0,0.00039696,120]
[393626794,1762864260904,-174.507721,0.00039696,120]
[393626795,1762864260914,-151.0,0.00039696,120]
[393626796,1762864260923,-151.0,0.00039696,120]
[393626797,1762864260932,-151.0,0.00039696,120]
[393626798,1762864260942,-151.0,0.00039696,120]
[393626799,1762864260952,-195.326533,0.00039696,120]
[393626800,1762864260962,-159.554663,0.00039696,120]
[393626801,1762864260971,-151.0,0.00039696,120]
[393626802,1762864260981,-151.0,0.00039696,120]
[393626803,1762864260990,-151.0,0.00039696,120]
[393626804,1762864261000,-1017.051,0.00039696,2]
[393626805,1762864261010,-813.0,0.00039696,2]
[393626806,1762864261020,-1273.0,0.00039696,2]
[393626807,1762864261031,-1199.467,0.00039696,2]
[393626808,1762864261040,-906.0,0.00039696,2]
[393626809,1762864261057,-631.053,0.00039696,2]
[393626810,1762864261067,-1317.0,0.00039696,2]
[393626811,1762864261077,-2143.0,0.00039696,2]
[393626812,1762864261088,-6664.0,0.00039696,2]
[393626813,1762864261100,-300.0,0.00039697,2]
[393626814,1762864261111,-2500.0,0.00039698,14]
[393626815,1762864261121,-2500.0,0.00039698,14]
[393626816,1762864261131,-491.85145446,0.00039698,14]
[393626817,1762864261140,-2500.0,0.00039698,14]
[393626818,1762864261150,-2500.0,0.00039698,14]
[393626819,1762864261160,-2000.0,0.00039699,2]
[393626820,1762864261169,-1004.5997,0.00039699,2]
[393626821,1762864261179,-1900.0,0.000397,14]
[393626822,1762864261189,-300.0,0.00039701,2]
[393626823,1762864261198,-1000.0,0.00039703,7]
[393626824,1762864261208,-300.0,0.00039712,2]
[393626825,1762864261218,-300.0,0.00039717,2]
[393626826,1762864261227,-201.42723711,0.00039722,50]
[393626827,1762864261238,-150.0,0.00039722,60]